[Event "Live Chess"]
[Site "Chess.com"]
[Date "2023.05.20"]
[Round "-"]
[White "yeetpizza74"]
[Black "toog"]
[Result "0-1"]
[WhiteElo "447"]
[BlackElo "2635"]
[TimeControl "300"]
[EndTime "9:25:23 PDT"]
[Termination "toog won by checkmate"]

1. e4 {[%clk 0:04:57.1]} 1... c6 {[%clk 0:04:58.5]} 2. d4 {[%clk 0:04:55]} 2...
d5 {[%clk 0:04:58.4]} 3. exd5 {[%clk 0:04:53.4]} 3... cxd5 {[%clk 0:04:58.3]} 4.
Nf3 {[%clk 0:04:52.1]} 4... Nc6 {[%clk 0:04:57.4]} 5. Nc3 {[%clk 0:04:48.9]}
5... Bg4 {[%clk 0:04:56.2]} 6. Be2 {[%clk 0:04:46.6]} 6... Nf6 {[%clk
0:04:55.1]} 7. O-O {[%clk 0:04:44.2]} 7... e6 {[%clk 0:04:54.5]} 8. Ne5 {[%clk
0:04:34.7]} 8... Bxe2 {[%clk 0:04:52.6]} 9. Qxe2 {[%clk 0:04:32]} 9... Nxd4
{[%clk 0:04:50.4]} 10. Qd3 {[%clk 0:04:18.5]} 10... Nc6 {[%clk 0:04:46.7]} 11.
Bg5 {[%clk 0:04:13.6]} 11... Nxe5 {[%clk 0:04:44.1]} 12. Qb5+ {[%clk 0:04:08.3]}
12... Qd7 {[%clk 0:04:43]} 13. Qe2 {[%clk 0:03:57.4]} 13... Bd6 {[%clk
0:04:41.4]} 14. Bf4 {[%clk 0:03:54.6]} 14... Ng6 {[%clk 0:04:40]} 15. Bxd6
{[%clk 0:03:53.2]} 15... Qxd6 {[%clk 0:04:39.9]} 16. Rad1 {[%clk 0:03:48.9]}
16... O-O {[%clk 0:04:38.5]} 17. Nb5 {[%clk 0:03:46.8]} 17... Qe5 {[%clk
0:04:36.1]} 18. Qxe5 {[%clk 0:03:34.6]} 18... Nxe5 {[%clk 0:04:36]} 19. Nc7
{[%clk 0:03:29.4]} 19... Rac8 {[%clk 0:04:34.3]} 20. Nb5 {[%clk 0:03:26.2]}
20... Rxc2 {[%clk 0:04:33.6]} 21. Nxa7 {[%clk 0:03:24.1]} 21... Rxb2 {[%clk
0:04:32.7]} 22. Ra1 {[%clk 0:03:18.8]} 22... Ra8 {[%clk 0:04:29.9]} 23. Rfb1
{[%clk 0:03:15.3]} 23... Rxb1+ {[%clk 0:04:28.4]} 24. Rxb1 {[%clk 0:03:14]}
24... Rxa7 {[%clk 0:04:28.3]} 25. f4 {[%clk 0:03:10.4]} 25... Nc4 {[%clk
0:04:26.5]} 26. Rc1 {[%clk 0:03:08.8]} 26... h5 {[%clk 0:04:24.8]} 27. h3 {[%clk
0:03:01.8]} 27... Rxa2 {[%clk 0:04:24.1]} 28. g4 {[%clk 0:02:57.7]} 28... Ne4
{[%clk 0:04:22.7]} 29. gxh5 {[%clk 0:02:52.4]} 29... Ne3 {[%clk 0:04:21.4]} 30.
Rc7 {[%clk 0:02:38.9]} 30... Rg2+ {[%clk 0:04:18.3]} 31. Kh1 {[%clk 0:02:37.2]}
31... Ng3# {[%clk 0:04:18.2]} 0-1

[Event "Live Chess"]
[Site "Chess.com"]
[Date "2023.05.20"]
[Round "-"]
[White "AttackingSnowLeopard"]
[Black "ReeceHockton"]
[Result "1-0"]
[WhiteElo "1967"]
[BlackElo "328"]
[TimeControl "300"]
[EndTime "9:25:25 PDT"]
[Termination "AttackingSnowLeopard won by resignation"]

1. Nf3 {[%clk 0:04:55.1]} 1... Nc6 {[%clk 0:04:51.8]} 2. g3 {[%clk 0:04:52.8]}
2... e5 {[%clk 0:04:50]} 3. d3 {[%clk 0:04:49.3]} 3... f5 {[%clk 0:04:44.3]} 4.
Bg2 {[%clk 0:04:48.4]} 4... Nge7 {[%clk 0:04:43.2]} 5. O-O {[%clk 0:04:47.8]}
5... d6 {[%clk 0:04:41.1]} 6. e4 {[%clk 0:04:47.3]} 6... fxe4 {[%clk 0:04:39.5]}
7. dxe4 {[%clk 0:04:45.6]} 7... Bg4 {[%clk 0:04:38.2]} 8. Nc3 {[%clk 0:04:43.5]}
8... Bxf3 {[%clk 0:04:36.8]} 9. Bxf3 {[%clk 0:04:41.9]} 9... d5 {[%clk
0:04:34.9]} 10. exd5 {[%clk 0:04:38.9]} 10... Nxd5 {[%clk 0:04:32.8]} 11. Bxd5
{[%clk 0:04:35.7]} 11... Nd4 {[%clk 0:04:23.6]} 12. Be3 {[%clk 0:04:33.9]} 12...
c5 {[%clk 0:04:20.6]} 13. Bxd4 {[%clk 0:04:31.4]} 13... cxd4 {[%clk 0:04:19.7]}
14. Qh5+ {[%clk 0:04:30.4]} 14... g6 {[%clk 0:04:18.2]} 15. Qxe5+ {[%clk
0:04:29.9]} 15... Be7 {[%clk 0:04:16.3]} 16. Qxh8+ {[%clk 0:04:28.2]} 16... Kd7
{[%clk 0:04:15.2]} 17. Qxd4 {[%clk 0:04:26.6]} 1-0

[Event "Live Chess"]
[Site "Chess.com"]
[Date "2023.05.20"]
[Round "-"]
[White "WelshTiger"]
[Black "Kr1xot4_XGOD"]
[Result "0-1"]
[WhiteElo "2450"]
[BlackElo "2199"]
[TimeControl "300"]
[EndTime "9:25:26 PDT"]
[Termination "Kr1xot4_XGOD won by checkmate"]

1. e4 {[%clk 0:04:58.7]} 1... c5 {[%clk 0:04:57.5]} 2. Nf3 {[%clk 0:04:57.7]}
2... e6 {[%clk 0:04:54]} 3. c3 {[%clk 0:04:56]} 3... d5 {[%clk 0:04:46.6]} 4.
exd5 {[%clk 0:04:55.9]} 4... exd5 {[%clk 0:04:44.1]} 5. d4 {[%clk 0:04:55]} 5...
Nf6 {[%clk 0:04:39.9]} 6. Bb5+ {[%clk 0:04:53.8]} 6... Nc6 {[%clk 0:04:35.7]} 7.
O-O {[%clk 0:04:52.5]} 7... Bd6 {[%clk 0:04:22.7]} 8. dxc5 {[%clk 0:04:51.2]}
8... Bxc5 {[%clk 0:04:20.2]} 9. Nbd2 {[%clk 0:04:44.2]} 9... O-O {[%clk
0:04:16.2]} 10. Nb3 {[%clk 0:04:43.3]} 10... Bd6 {[%clk 0:04:09.8]} 11. Bg5
{[%clk 0:04:41.2]} 11... a6 {[%clk 0:04:06.1]} 12. Be2 {[%clk 0:04:38.2]} 12...
h6 {[%clk 0:03:59.1]} 13. Bxf6 {[%clk 0:04:33.7]} 13... gxf6 {[%clk 0:03:58.1]}
14. Qxd5 {[%clk 0:04:33.4]} 14... Bxh2+ {[%clk 0:03:50]} 15. Kxh2 {[%clk
0:04:31.2]} 15... Qxd5 {[%clk 0:03:46.4]} 16. Rad1 {[%clk 0:04:31.1]} 16... Qf5
{[%clk 0:03:34.6]} 17. Bd3 {[%clk 0:04:24.6]} 17... Qf4+ {[%clk 0:03:30.1]} 18.
Kg1 {[%clk 0:04:22.6]} 18... Bh3 {[%clk 0:03:26]} 19. Be2 {[%clk 0:04:17.3]}
19... Bxg2 {[%clk 0:03:20.3]} 20. Kxg2 {[%clk 0:04:16.3]} 20... Qg4+ {[%clk
0:03:16.8]} 21. Kh2 {[%clk 0:04:13.5]} 21... Kh8 {[%clk 0:02:47.9]} 22. Rg1
{[%clk 0:03:53.3]} 22... Qf4+ {[%clk 0:02:42.2]} 23. Kg2 {[%clk 0:03:47.7]}
23... Rg8+ {[%clk 0:02:37.6]} 24. Kf1 {[%clk 0:03:47.1]} 24... Rxg1+ {[%clk
0:02:32.1]} 25. Nxg1 {[%clk 0:03:47]} 25... Rg8 {[%clk 0:02:27.4]} 26. Nf3
{[%clk 0:03:41.4]} 26... Ne5 {[%clk 0:02:21.9]} 27. Rd4 {[%clk 0:03:35.5]} 27...
Nxf3 {[%clk 0:02:16.3]} 28. Bxf3 {[%clk 0:03:24.3]} 28... Qxf3 {[%clk
0:02:08.2]} 29. Ke1 {[%clk 0:03:22.9]} 29... Rg1+ {[%clk 0:02:01]} 30. Kd2
{[%clk 0:03:22.4]} 30... Qd1+ {[%clk 0:01:54.7]} 31. Ke3 {[%clk 0:03:21.6]}
31... Re1+ {[%clk 0:01:49.5]} 32. Kf4 {[%clk 0:03:20.7]} 32... Qe2 {[%clk
0:01:45.3]} 33. Rd2 {[%clk 0:03:17.7]} 33... Qe4+ {[%clk 0:01:42.3]} 34. Kg3
{[%clk 0:03:17.1]} 34... Kg7 {[%clk 0:01:35.4]} 35. Nd4 {[%clk 0:03:15.2]} 35...
h5 {[%clk 0:01:27.4]} 36. Nf3 {[%clk 0:03:13]} 36... Qg4+ {[%clk 0:01:23.9]} 37.
Kh2 {[%clk 0:03:11.4]} 37... Qxf3 {[%clk 0:01:22.8]} 38. Rd4 {[%clk 0:03:07.7]}
38... Rh1# {[%clk 0:01:17.8]} 0-1

[Event "Live Chess"]
[Site "Chess.com"]
[Date "2023.05.20"]
[Round "-"]
[White "EdenHazard8"]
[Black "thrithik"]
[Result "1-0"]
[WhiteElo "2103"]
[BlackElo "489"]
[TimeControl "300"]
[EndTime "9:25:26 PDT"]
[Termination "EdenHazard8 won by checkmate"]

1. e4 {[%clk 0:04:58.7]} 1... h6 {[%clk 0:04:58.6]} 2. Bc4 {[%clk 0:04:56.2]}
2... Nf6 {[%clk 0:04:58.3]} 3. Qf3 {[%clk 0:04:54.6]} 3... e6 {[%clk 0:04:55.4]}
4. Nc3 {[%clk 0:04:52.2]} 4... d5 {[%clk 0:04:55]} 5. exd5 {[%clk 0:04:50.7]}
5... exd5 {[%clk 0:04:52.7]} 6. Nxd5 {[%clk 0:04:50.6]} 6... Be6 {[%clk
0:04:46.1]} 7. Nxf6+ {[%clk 0:04:47.7]} 7... gxf6 {[%clk 0:04:40.9]} 8. Bxe6
{[%clk 0:04:46.5]} 8... fxe6 {[%clk 0:04:37.5]} 9. Nh3 {[%clk 0:04:45.5]} 9...
Nc6 {[%clk 0:04:29.6]} 10. c3 {[%clk 0:04:41.7]} 10... Ne5 {[%clk 0:04:27.4]}
11. Qh5+ {[%clk 0:04:40.3]} 11... Ke7 {[%clk 0:04:20.5]} 12. Nf4 {[%clk
0:04:36.9]} 12... Bg7 {[%clk 0:04:12.3]} 13. d4 {[%clk 0:04:34.4]} 13... Re8
{[%clk 0:04:11.9]} 14. dxe5 {[%clk 0:04:33]} 14... Rf8 {[%clk 0:04:09.4]} 15.
Ng6+ {[%clk 0:04:30]} 15... Kd7 {[%clk 0:04:02.9]} 16. Nxf8+ {[%clk 0:04:29.9]}
16... Qxf8 {[%clk 0:03:59.5]} 17. O-O {[%clk 0:04:29]} 17... Qe7 {[%clk
0:03:51]} 18. Rd1+ {[%clk 0:04:27.2]} 18... Kc6 {[%clk 0:03:46.5]} 19. Qf3+
{[%clk 0:04:25.2]} 19... Kb6 {[%clk 0:03:37.9]} 20. Be3+ {[%clk 0:04:23.3]}
20... Ka6 {[%clk 0:03:35.5]} 21. Qe2+ {[%clk 0:04:21.7]} 21... Ka5 {[%clk
0:03:32.4]} 22. a4 {[%clk 0:04:20.3]} 22... fxe5 {[%clk 0:03:24.6]} 23. Qb5#
{[%clk 0:04:18.6]} 1-0

[Event "Live Chess"]
[Site "Chess.com"]
[Date "2023.05.20"]
[Round "-"]
[White "Olisingapore"]
[Black "Goblinbasher"]
[Result "1-0"]
[WhiteElo "1950"]
[BlackElo "1204"]
[TimeControl "300"]
[EndTime "9:25:36 PDT"]
[Termination "Olisingapore won by resignation"]

1. d4 {[%clk 0:04:55.8]} 1... f5 {[%clk 0:04:58]} 2. c4 {[%clk 0:04:55.5]} 2...
Nf6 {[%clk 0:04:56.7]} 3. g3 {[%clk 0:04:55]} 3... e6 {[%clk 0:04:54.7]} 4. Bg2
{[%clk 0:04:54.7]} 4... Be7 {[%clk 0:04:54]} 5. Nc3 {[%clk 0:04:54.1]} 5... O-O
{[%clk 0:04:52.5]} 6. Nf3 {[%clk 0:04:53.4]} 6... d6 {[%clk 0:04:51.3]} 7. O-O
{[%clk 0:04:51.5]} 7... Ne4 {[%clk 0:04:48.3]} 8. Qc2 {[%clk 0:04:49.8]} 8...
Nxc3 {[%clk 0:04:46.9]} 9. bxc3 {[%clk 0:04:49.7]} 9... Qe8 {[%clk 0:04:44.1]}
10. Ba3 {[%clk 0:04:48.6]} 10... Nd7 {[%clk 0:04:37.2]} 11. Rfe1 {[%clk
0:04:48]} 11... Kh8 {[%clk 0:04:36.3]} 12. Nh4 {[%clk 0:04:42.7]} 12... Bxh4
{[%clk 0:04:31.8]} 13. gxh4 {[%clk 0:04:41.2]} 13... Qh5 {[%clk 0:04:27.8]} 14.
c5 {[%clk 0:04:31]} 14... d5 {[%clk 0:04:14.9]} 15. c6 {[%clk 0:04:28.5]} 15...
Nf6 {[%clk 0:04:07.8]} 16. Bxf8 {[%clk 0:04:25.7]} 16... Qxh4 {[%clk 0:04:06.3]}
17. cxb7 {[%clk 0:04:10.6]} 17... Bxb7 {[%clk 0:04:04.8]} 18. Be7 {[%clk
0:04:07.9]} 18... Re8 {[%clk 0:03:51.3]} 19. Bxf6 {[%clk 0:04:05.8]} 19... Qxf6
{[%clk 0:03:50.3]} 20. Rab1 {[%clk 0:04:04.5]} 20... Bc8 {[%clk 0:03:48.2]} 21.
Qa4 {[%clk 0:04:01.4]} 21... Rf8 {[%clk 0:03:38.1]} 22. Qxa7 {[%clk 0:03:59.3]}
22... f4 {[%clk 0:03:31.2]} 23. Qxc7 {[%clk 0:03:54.3]} 23... Qg6 {[%clk
0:03:24.1]} 24. Rb8 {[%clk 0:03:49]} 24... f3 {[%clk 0:03:21.2]} 25. exf3 {[%clk
0:03:47]} 25... h6 {[%clk 0:03:16.6]} 26. Rxc8 {[%clk 0:03:45.2]} 26... Rxc8
{[%clk 0:03:15.6]} 27. Qxc8+ {[%clk 0:03:44]} 27... Kh7 {[%clk 0:03:11]} 28.
Qxe6 {[%clk 0:03:43.5]} 28... Qd3 {[%clk 0:03:06.1]} 29. Qxd5 {[%clk 0:03:39.2]}
29... Qxc3 {[%clk 0:03:05]} 30. Qe4+ {[%clk 0:03:38]} 30... Kh8 {[%clk
0:03:01.6]} 31. Qg6 {[%clk 0:03:23.2]} 1-0

[Event "Live Chess"]
[Site "Chess.com"]
[Date "2023.05.20"]
[Round "-"]
[White "peter-785"]
[Black "noobsmoker24"]
[Result "0-1"]
[WhiteElo "1147"]
[BlackElo "1372"]
[TimeControl "300"]
[EndTime "9:25:44 PDT"]
[Termination "noobsmoker24 won by resignation"]

1. e4 {[%clk 0:04:54.3]} 1... c6 {[%clk 0:04:58.4]} 2. Nf3 {[%clk 0:04:52.9]}
2... d5 {[%clk 0:04:56.5]} 3. exd5 {[%clk 0:04:50.9]} 3... cxd5 {[%clk
0:04:56.4]} 4. d4 {[%clk 0:04:50.2]} 4... Nc6 {[%clk 0:04:54.8]} 5. Bb5 {[%clk
0:04:45.8]} 5... Bf5 {[%clk 0:04:52.9]} 6. c3 {[%clk 0:04:42.4]} 6... e6 {[%clk
0:04:42.7]} 7. O-O {[%clk 0:04:39.2]} 7... Nf6 {[%clk 0:04:40.5]} 8. Ne5 {[%clk
0:04:18.1]} 8... Rc8 {[%clk 0:04:29.2]} 9. Qa4 {[%clk 0:04:09.2]} 9... Qb6
{[%clk 0:04:15.5]} 10. Nd2 {[%clk 0:03:39.8]} 10... Be7 {[%clk 0:04:03.6]} 11.
Bxc6+ {[%clk 0:03:37.2]} 11... bxc6 {[%clk 0:04:01.4]} 12. Qb3 {[%clk
0:03:19.7]} 12... Qd8 {[%clk 0:03:49.9]} 13. Qb7 {[%clk 0:03:11.2]} 13... c5
{[%clk 0:03:38.5]} 14. Nc6 {[%clk 0:03:01.2]} 14... Rc7 {[%clk 0:03:26.2]} 15.
Qb5 {[%clk 0:02:48.6]} 15... Qd7 {[%clk 0:03:17.2]} 16. Qb8+ {[%clk 0:02:43]}
16... Rc8 {[%clk 0:03:11.6]} 17. Qxa7 {[%clk 0:02:11.1]} 17... Qxc6 {[%clk
0:03:07.9]} 18. Qa3 {[%clk 0:01:50.2]} 18... cxd4 {[%clk 0:03:03.9]} 19. cxd4
{[%clk 0:01:41.8]} 19... Bxa3 {[%clk 0:03:02.5]} 0-1

[Event "Live Chess"]
[Site "Chess.com"]
[Date "2023.05.20"]
[Round "-"]
[White "hello505050"]
[Black "viktorskliarov"]
[Result "0-1"]
[WhiteElo "1071"]
[BlackElo "2644"]
[TimeControl "300"]
[EndTime "9:25:48 PDT"]
[Termination "viktorskliarov won by checkmate"]

1. e4 {[%clk 0:04:59]} 1... c5 {[%clk 0:04:56.7]} 2. Nf3 {[%clk 0:04:57.3]} 2...
Nc6 {[%clk 0:04:54.6]} 3. Bb5 {[%clk 0:04:55.3]} 3... e6 {[%clk 0:04:53.6]} 4.
Bxc6 {[%clk 0:04:54.2]} 4... bxc6 {[%clk 0:04:51.9]} 5. Nc3 {[%clk 0:04:53.4]}
5... Ne7 {[%clk 0:04:49.9]} 6. d4 {[%clk 0:04:49.1]} 6... cxd4 {[%clk
0:04:47.2]} 7. Qxd4 {[%clk 0:04:49]} 7... Ng6 {[%clk 0:04:41.5]} 8. O-O {[%clk
0:04:44.1]} 8... Qb6 {[%clk 0:04:35.6]} 9. Qxb6 {[%clk 0:04:42]} 9... axb6
{[%clk 0:04:34.2]} 10. Be3 {[%clk 0:04:40.8]} 10... Bc5 {[%clk 0:04:20.1]} 11.
Bxc5 {[%clk 0:04:39.1]} 11... bxc5 {[%clk 0:04:18.9]} 12. a3 {[%clk 0:04:36]}
12... Ke7 {[%clk 0:04:07]} 13. b4 {[%clk 0:04:31.6]} 13... Ba6 {[%clk
0:04:03.1]} 14. Rfd1 {[%clk 0:04:21.8]} 14... cxb4 {[%clk 0:04:01.9]} 15. axb4
{[%clk 0:04:20.2]} 15... Rhb8 {[%clk 0:04:01.3]} 16. Rd4 {[%clk 0:04:11.2]}
16... e5 {[%clk 0:03:57.7]} 17. Rd2 {[%clk 0:04:08.8]} 17... Bc4 {[%clk
0:03:55.3]} 18. Rad1 {[%clk 0:04:06.1]} 18... Ra7 {[%clk 0:03:49.7]} 19. h4
{[%clk 0:03:56.2]} 19... f6 {[%clk 0:03:47.5]} 20. h5 {[%clk 0:03:54.1]} 20...
Nf4 {[%clk 0:03:46.4]} 21. g3 {[%clk 0:03:45.1]} 21... Nxh5 {[%clk 0:03:31.7]}
22. g4 {[%clk 0:03:35.5]} 22... Nf4 {[%clk 0:03:29.5]} 23. g5 {[%clk 0:03:23.2]}
23... Rxb4 {[%clk 0:03:25.4]} 24. gxf6+ {[%clk 0:03:15]} 24... gxf6 {[%clk
0:03:24.3]} 25. Nh4 {[%clk 0:02:50.5]} 25... Be6 {[%clk 0:03:22.6]} 26. Nf5+
{[%clk 0:02:48.2]} 26... Bxf5 {[%clk 0:03:21.3]} 27. exf5 {[%clk 0:02:48.1]}
27... d5 {[%clk 0:03:18.9]} 28. f3 {[%clk 0:02:38.2]} 28... Ra3 {[%clk
0:03:15.5]} 29. Ne2 {[%clk 0:02:31.5]} 29... Rxf3 {[%clk 0:03:13.9]} 30. Nxf4
{[%clk 0:02:27.4]} 30... Rbxf4 {[%clk 0:03:12.4]} 31. c4 {[%clk 0:02:22.9]}
31... Rxc4 {[%clk 0:03:10.5]} 32. Kg2 {[%clk 0:02:20.4]} 32... Rxf5 {[%clk
0:03:09]} 33. Ra1 {[%clk 0:02:17]} 33... Rg4+ {[%clk 0:03:07]} 34. Kh3 {[%clk
0:02:14.8]} 34... h5 {[%clk 0:02:47]} 35. Ra7+ {[%clk 0:02:10.6]} 35... Kd6
{[%clk 0:02:46.1]} 36. Ra6 {[%clk 0:01:54.9]} 36... Rf3+ {[%clk 0:02:37.8]} 37.
Kh2 {[%clk 0:01:52.1]} 37... h4 {[%clk 0:02:33.7]} 38. Rc2 {[%clk 0:01:48.3]}
38... Rc4 {[%clk 0:02:31.7]} 39. Rb2 {[%clk 0:01:44]} 39... h3 {[%clk
0:02:28.8]} 40. Raa2 {[%clk 0:01:33.6]} 40... Rg4 {[%clk 0:02:25.1]} 41. Kh1
{[%clk 0:01:28.8]} 41... Rf1+ {[%clk 0:02:22.2]} 42. Kh2 {[%clk 0:01:26.9]}
42... Rg2+ {[%clk 0:02:19.4]} 43. Kxh3 {[%clk 0:01:23.8]} 43... Rxb2 {[%clk
0:02:17.6]} 44. Rxb2 {[%clk 0:01:23.7]} 44... d4 {[%clk 0:02:16.2]} 45. Rg2
{[%clk 0:01:21.3]} 45... c5 {[%clk 0:02:14.5]} 46. Rg6 {[%clk 0:01:20]} 46... c4
{[%clk 0:02:13.6]} 47. Kg2 {[%clk 0:01:18.6]} 47... Rf4 {[%clk 0:02:12]} 48. Kg3
{[%clk 0:01:13.3]} 48... c3 {[%clk 0:02:10.9]} 49. Rh6 {[%clk 0:01:11.8]} 49...
c2 {[%clk 0:02:10.2]} 50. Rh1 {[%clk 0:01:11]} 50... d3 {[%clk 0:02:09.7]} 51.
Kg2 {[%clk 0:01:08.6]} 51... d2 {[%clk 0:02:09]} 52. Ra1 {[%clk 0:01:04.7]}
52... c1=Q {[%clk 0:02:07.4]} 53. Ra6+ {[%clk 0:01:02.8]} 53... Qc6+ {[%clk
0:02:05.4]} 54. Rxc6+ {[%clk 0:01:01.2]} 54... Kxc6 {[%clk 0:02:04.5]} 55. Kh2
{[%clk 0:01:00.2]} 55... d1=R {[%clk 0:02:01.9]} 56. Kg2 {[%clk 0:00:59]} 56...
Rd3 {[%clk 0:02:01.1]} 57. Kh1 {[%clk 0:00:56.7]} 57... Rf2 {[%clk 0:02:00.2]}
58. Kg1 {[%clk 0:00:55.7]} 58... Ra2 {[%clk 0:02:00.1]} 59. Kf1 {[%clk
0:00:53.5]} 59... Rd1# {[%clk 0:02:00]} 0-1

[Event "Live Chess"]
[Site "Chess.com"]
[Date "2023.05.20"]
[Round "-"]
[White "NAZRIZ1977"]
[Black "RoaringKnights"]
[Result "1-0"]
[WhiteElo "2147"]
[BlackElo "918"]
[TimeControl "300"]
[EndTime "9:25:55 PDT"]
[Termination "NAZRIZ1977 won by checkmate"]

1. c4 {[%clk 0:04:57.8]} 1... c6 {[%clk 0:04:56.4]} 2. g3 {[%clk 0:04:56.7]}
2... d5 {[%clk 0:04:55.3]} 3. Bg2 {[%clk 0:04:56]} 3... Bf5 {[%clk 0:04:53.2]}
4. Nf3 {[%clk 0:04:54.8]} 4... e6 {[%clk 0:04:51.8]} 5. cxd5 {[%clk 0:04:53.2]}
5... cxd5 {[%clk 0:04:50.3]} 6. Qb3 {[%clk 0:04:52.3]} 6... Qc7 {[%clk
0:04:46.4]} 7. O-O {[%clk 0:04:50.7]} 7... Nc6 {[%clk 0:04:44.1]} 8. Nc3 {[%clk
0:04:49.9]} 8... Bc5 {[%clk 0:04:41.4]} 9. d3 {[%clk 0:04:48.7]} 9... Nf6 {[%clk
0:04:39.2]} 10. Bf4 {[%clk 0:04:45.7]} 10... Qb6 {[%clk 0:04:20]} 11. Qc2 {[%clk
0:04:35.7]} 11... O-O {[%clk 0:04:13.2]} 12. Na4 {[%clk 0:04:34.3]} 12... Bxf2+
{[%clk 0:03:50.9]} 13. Rxf2 {[%clk 0:04:29.1]} 13... Qd8 {[%clk 0:03:41.9]} 14.
h3 {[%clk 0:04:25.1]} 14... h6 {[%clk 0:03:32.5]} 15. g4 {[%clk 0:04:22.6]}
15... Bh7 {[%clk 0:03:29.8]} 16. Nc5 {[%clk 0:04:21.8]} 16... Qb6 {[%clk
0:03:13.8]} 17. g5 {[%clk 0:04:19.4]} 17... hxg5 {[%clk 0:03:04.3]} 18. Bxg5
{[%clk 0:04:18.4]} 18... Ne8 {[%clk 0:02:34.4]} 19. Nd7 {[%clk 0:04:15.2]} 19...
Qa6 {[%clk 0:02:29.3]} 20. Nxf8 {[%clk 0:04:13.2]} 20... Kxf8 {[%clk 0:02:28.2]}
21. a3 {[%clk 0:04:07.8]} 21... Nc7 {[%clk 0:02:12.1]} 22. b4 {[%clk 0:04:01.8]}
22... Nb5 {[%clk 0:02:09.5]} 23. Qc5+ {[%clk 0:03:58.7]} 23... Kg8 {[%clk
0:02:04.6]} 24. a4 {[%clk 0:03:57.8]} 24... Nc7 {[%clk 0:01:54.1]} 25. b5 {[%clk
0:03:56.7]} 25... Nxb5 {[%clk 0:01:48.1]} 26. Qxb5 {[%clk 0:03:55.5]} 26... Qxb5
{[%clk 0:01:40.9]} 27. axb5 {[%clk 0:03:54.5]} 27... Nb4 {[%clk 0:01:36]} 28. b6
{[%clk 0:03:52.2]} 28... a6 {[%clk 0:01:29.4]} 29. Nd4 {[%clk 0:03:49]} 29...
Nc6 {[%clk 0:01:12.9]} 30. Nxc6 {[%clk 0:03:45.8]} 30... bxc6 {[%clk 0:01:11.4]}
31. Rff1 {[%clk 0:03:42.1]} 31... Rb8 {[%clk 0:01:08.4]} 32. Rxa6 {[%clk
0:03:40]} 32... Bf5 {[%clk 0:01:02.9]} 33. Rb1 {[%clk 0:03:37]} 33... e5 {[%clk
0:01:01.2]} 34. b7 {[%clk 0:03:35.2]} 34... Kf8 {[%clk 0:00:54.9]} 35. Ra8
{[%clk 0:03:33.9]} 35... Rxa8 {[%clk 0:00:52.7]} 36. bxa8=Q+ {[%clk 0:03:32.9]}
36... Bc8 {[%clk 0:00:51.3]} 37. Qxc8# {[%clk 0:03:31.9]} 1-0

[Event "Live Chess"]
[Site "Chess.com"]
[Date "2023.05.20"]
[Round "-"]
[White "JackRudd"]
[Black "therealab0ne"]
[Result "1-0"]
[WhiteElo "2414"]
[BlackElo "677"]
[TimeControl "300"]
[EndTime "9:25:55 PDT"]
[Termination "JackRudd won by resignation"]

1. e4 {[%clk 0:04:58.8]} 1... c5 {[%clk 0:04:55.1]} 2. Nf3 {[%clk 0:04:57.3]}
2... Nc6 {[%clk 0:04:53.3]} 3. d4 {[%clk 0:04:56.1]} 3... cxd4 {[%clk
0:04:52.3]} 4. Nxd4 {[%clk 0:04:55.3]} 4... Nf6 {[%clk 0:04:51.7]} 5. Nc3 {[%clk
0:04:53.9]} 5... d6 {[%clk 0:04:48.3]} 6. Bg5 {[%clk 0:04:51.6]} 6... g6 {[%clk
0:04:36.2]} 7. Bxf6 {[%clk 0:04:48]} 7... exf6 {[%clk 0:04:32.1]} 8. Qd2 {[%clk
0:04:46.5]} 8... f5 {[%clk 0:04:01.3]} 9. exf5 {[%clk 0:04:43.8]} 9... Bg7
{[%clk 0:03:58.4]} 10. Nxc6 {[%clk 0:04:40.4]} 10... b6 {[%clk 0:03:56.5]} 11.
Nxd8 {[%clk 0:04:39]} 11... Kxd8 {[%clk 0:03:52.6]} 12. Qxd6+ {[%clk 0:04:37.2]}
12... Bd7 {[%clk 0:03:47]} 13. O-O-O {[%clk 0:04:31.1]} 1-0